[Event "Saint Louis Norm Congress-IM 2022"]
[Site "Saint Louis"]
[Date "2022.05.21"]
[Round "5.1"]
[White "Yu, Jennifer"]
[Black "Posthuma, Joshua"]
[Result "0-1"]
[ECO "A50"]
[WhiteElo "2257"]
[BlackElo "2405"]
[Annotator "TA"]
[PlyCount "78"]
[EventDate "2022.05.20"]
[EventType "tourn"]
[EventCountry "USA"]
[SourceTitle "playchess.com"]
[Source "ChessBase"]
[SourceQuality "1"]
[TimeControl "5400+30"]

{[%evp 11,78,17,25,23,30,21,28,16,48,54,91,89,93,77,96,39,21,18,12,-20,-8,0,-12,-14,-4,-122,0,-80,17,4,24,-162,-156,-226,-237,-224,-215,-195,-58,-795,-788,-787,-768,-775,-644,-500,0,0,0,0,0,0,0,0,17,17,17,0,0,0,0,0,0,0,0,-29978,-29979,-29991,-29992]} 1. d4 {[%emt 0:07:05]} Nf6 {[%emt 0:00:21]} 2. c4 {[%emt 0:00:29]} b6 {[%emt 0:00:11]} 3. Nc3 {[%emt 0:00:25]} Bb7 {[%emt 0:00:13]} 4. Qc2 {[%emt 0:00:35]} d5 {[%emt 0:00:31]} 5. cxd5 {[%emt 0:00:25]} Nxd5 {[%emt 0:00:12]} 6. Nf3 {[%emt 0:00:24]} e6 {[%emt 0:00:50]} 7. e4 {[%emt 0:00:44] A50: Queen's Fianchetto Defence (1 d4 Nf6 2 c4 b6).} Nxc3 {[%emt 0:00:09]} 8. bxc3 {[%emt 0:00:07]} Be7 {[%emt 0:01:23]} 9. Bf4 {[%emt 0:00:30] [#] White has an edge.} Nd7 $146 {[%emt 0:13:44]} ({Predecessor:} 9... O-O 10. Bd3 c5 11. d5 exd5 12. exd5 Qxd5 13. O-O-O Qh5 14. Be4 Bc6 15. Rhe1 c4 16. Bxh7+ Qxh7 17. Qxh7+ Kxh7 18. Rxe7 {½-½ (46) Laghetti,G (2487)-Serner,A (2412) ICCF email 2020}) 10. Rd1 {[%emt 0:05:49]} g5 {[%emt 0:01:38]} 11. Bg3 {[%emt 0:05:58]} h5 {[%emt 0:04:36]} 12. h4 {[%emt 0:06:12]} g4 {[%emt 0:04:42]} 13. Ng5 {[%emt 0:22:30]} ({Better is} 13. Nd2 $1 $16) 13... Bxg5 $14 {[%emt 0:05:36]} 14. hxg5 {[%emt 0:00:07]} Qxg5 {[%emt 0:00:22]} 15. Bxc7 {[%emt 0:01:20]} Rc8 $36 {[%emt 0:15:17][%mdl 2048] Black has good play.} 16. Bd6 {[%emt 0:00:59]} h4 {[%emt 0:13:41]} 17. Rd2 {[%emt 0:22:54]} Rh6 {[%emt 0:09:24]} 18. Qd3 {[%emt 0:12:29]} (18. Ba3 $11) 18... Rc6 {[%emt 0:10:41]} (18... f5 $1 $17 19. exf5 h3) 19. Bb4 {[%emt 0:01:49]} (19. Ba3 $11 {keeps the balance.}) 19... a5 {[%emt 0:02:50]} (19... Nf6 $1 $17) 20. Ba3 $11 {[%emt 0:00:06]} f5 {[%emt 0:03:32][%cal Bf7f5,Bf5e4][%mdl 32]} 21. d5 $2 {[%emt 0:04:33]} (21. exf5 $11 Qxf5 22. Qe3) 21... fxe4 $19 {[%emt 0:00:39]} 22. Qb5 {[%emt 0:02:30]} (22. Qd4 $17 {was necessary.} exd5 23. Rd1) 22... exd5 {[%emt 0:01:57]} 23. Rxd5 {[%emt 0:00:05]} Qg7 {[%emt 0:00:43]} 24. Rd4 {[%emt 0:00:24]} g3 {[%emt 0:03:25]} (24... Rxc3 {[#]} 25. Rxd7 $1 {[%mdl 512]} Qxd7 26. Qe5+ Kd8 27. Qg5+ (27. Qxc3 e3 $18) 27... Kc7 28. Qe5+ (28. Qxh6 e3 $18) 28... Kd8 29. Qg5+ (29. Qxc3 e3 $18) 29... Kc7 30. Qxh6 $18 (30. Qe5+ Kd8 $18)) (24... h3 $19 25. Bc1 (25. gxh3 $2 e3 $19) 25... Nc5 $1) 25. Rxe4+ $2 {[%emt 0:02:55][%mdl 8192]} (25. Rh3 $15) 25... Rce6 {[%emt 0:00:18]} 26. Rxe6+ {[%emt 0:00:55]} Rxe6+ {[%emt 0:00:01]} 27. Kd2 {[%emt 0:00:48]} Qh6+ {[%emt 0:01:13]} 28. Kc2 {[%emt 0:00:11]} Re5 $2 {[%emt 0:02:00]} (28... Be4+ $19 29. Bd3 gxf2) 29. Qc4 $11 {[%emt 0:01:02]} Be4+ {[%emt 0:01:03]} 30. Bd3 {[%emt 0:00:06]} Bxd3+ {[%emt 0:00:10]} 31. Kxd3 {[%emt 0:00:57] Black must now prevent Qc8+.} Qg6+ {[%emt 0:03:20]} 32. Kd2 {[%emt 0:00:04] Threatens to win with Qc8+.} Nc5 {[%emt 0:01:03]} 33. Bxc5 {[%emt 0:00:40]} Rxc5 {[%emt 0:00:12][%mdl 4096] Endgame KQR-KQR. Really sharp!} (33... bxc5 34. Qxh4 Rd5+ 35. Kc1 Qg5+ 36. Qxg5 Rxg5 37. f3 $16) 34. Re1+ {[%emt 0:00:48]} Kd7 {[%emt 0:00:21]} 35. Qxh4 {[%emt 0:00:24] And now Qe7+ would win.} Rd5+ {[%emt 0:01:06]} 36. Kc1 {[%emt 0:00:09]} Qd3 {[%emt 0:00:32]} 37. Qa4+ {[%emt 0:00:51]} Kd6 {[%emt 0:00:28]} ({But not} 37... b5 38. Qg4+ Kc7 39. Qg7+ (39. Qxg3+ Qxg3 40. fxg3 Rd3 $11) 39... Rd7 40. Qe5+ (40. Qxg3+ Qxg3 41. fxg3 Rd3 $11) 40... Kc8 41. f3 $14 (41. fxg3 b4 $14)) 38. Qc2 {[%emt 0:00:33][%mdl 8192]} (38. Rd1 $11 Qxc3+ 39. Kb1) 38... gxf2 {[%emt 0:00:17][%mdl 64] Deflection} ({Weaker is} 38... Qxc2+ 39. Kxc2 gxf2 40. Rf1 $11) 39. Qxf2 {[%emt 0:00:33]} Qxc3+ {[%emt 0:00:10] Weighted Error Value: White=0.65/Black=0.30} 0-1

[Event "Saint Louis Norm Congress-IM 2022"]
[Site "Saint Louis"]
[Date "2022.05.21"]
[Round "5.2"]
[White "Marek, Matyas"]
[Black "Lee, Alice"]
[Result "1/2-1/2"]
[ECO "A06"]
[WhiteElo "2363"]
[BlackElo "2344"]
[Annotator "TA"]
[PlyCount "78"]
[EventDate "2022.05.20"]
[EventType "tourn"]
[EventCountry "USA"]
[SourceTitle "playchess.com"]
[Source "ChessBase"]
[SourceQuality "1"]
[TimeControl "5400+30"]

{[%evp 9,78,5,12,3,6,5,7,-20,-16,-15,0,17,-3,-44,0,0,0,0,0,0,0,-10,0,0,0,-57,-53,-53,-54,-48,-35,-40,-33,-45,-30,-62,-2,-68,-62,-75,-75,-60,-45,-57,-18,-27,-22,-22,-14,-18,-16,-23,-30,-22,-21,-182,-9,-16,-25,-75,0,0,19,-14,0,0,0,-10,-6,-25,0]} 1. Nf3 {[%emt 0:00:09]} d5 {[%emt 0:00:06]} 2. e3 {[%emt 0:00:11]} Nf6 {[%emt 0:00:14]} 3. b3 {[%emt 0:00:14]} Bg4 {[%emt 0:01:27]} 4. c4 {[%emt 0:01:35]} e6 {[%emt 0:00:30]} 5. Bb2 {[%emt 0:02:58]} Nbd7 {[%emt 0:00:59][%cal Bb8d7,Bd7c5,Bc5e4][%mdl 32]} 6. Nc3 {[%emt 0:00:17] A06: Réti Opening: 1 Nf3 d5.} c6 {[%emt 0:04:26]} 7. h3 {[%emt 0:02:25]} Bh5 {[%emt 0:00:41]} 8. g4 {[%emt 0:01:31] The position is equal.} Bg6 {[%emt 0:00:09]} 9. Nh4 {[%emt 0:00:06]} Nc5 {[%emt 0:07:15]} 10. Nxg6 {[%emt 0:05:51]} hxg6 {[%emt 0:00:20] [#]} 11. Be2 $146 {[%emt 0:00:56]} (11. b4 $5 {[%cal Rb4c5]} Nce4 12. c5 $11) ({Predecessor:} 11. Qe2 a5 12. Rb1 Be7 13. f3 g5 14. Kf2 d4 15. Nd1 d3 16. Qe1 Qc7 17. Kg2 {0-1 (53) Salinas Herrera,P (2514)-Bluebaum,M (2670) Chess.com INT 2021}) 11... Nce4 {[%emt 0:12:30]} (11... d4 $5 {[%cal Rd4c3]} 12. Na4 Nxa4 13. bxa4 Bc5 $15) 12. d3 {[%emt 0:00:44]} Nxc3 {[%emt 0:05:19]} 13. Bxc3 {[%emt 0:00:06]} g5 {[%emt 0:00:22]} 14. Qc2 {[%emt 0:04:09]} Bd6 {[%emt 0:14:34]} 15. O-O-O {[%emt 0:03:14]} Qe7 {[%emt 0:05:17]} 16. Kb1 {[%emt 0:01:10][%cal Of2f4]} O-O-O {[%emt 0:01:53]} 17. cxd5 {[%emt 0:06:06]} (17. Bf3 $11) 17... exd5 $15 {[%emt 0:00:25]} 18. Bf3 {[%emt 0:00:17]} Kb8 {[%emt 0:02:31]} 19. Bg2 {[%emt 0:02:58]} Be5 {[%emt 0:00:42]} 20. d4 {[%emt 0:07:56]} Bc7 {[%emt 0:01:05]} 21. Rhe1 {[%emt 0:01:55]} Ne4 {[%emt 0:03:32]} 22. Bb2 {[%emt 0:01:07]} Nd6 {[%emt 0:01:27]} ({Black should play} 22... Ba5 $15 23. Re2 Bb4) 23. f3 {[%emt 0:01:42]} (23. e4 $1 $11 dxe4 24. d5) 23... Nb5 {[%emt 0:00:52]} 24. Qd3 {[%emt 0:01:47]} Bg3 {[%emt 0:03:01]} 25. Re2 {[%emt 0:01:01][%cal Of3f4]} Qd7 {[%emt 0:00:41]} 26. Bc1 {[%emt 0:04:08]} Rde8 {[%emt 0:04:19]} 27. a4 {[%emt 0:05:03]} Nc7 {[%emt 0:00:11]} 28. Rb2 {[%emt 0:04:13]} Bd6 {[%emt 0:01:07]} 29. b4 $1 {[%emt 0:04:02]} Re6 {[%emt 0:06:06]} 30. b5 {[%emt 0:01:52]} cxb5 {[%emt 0:00:23]} 31. axb5 {[%emt 0:00:01]} Be7 {[%emt 0:00:22]} 32. e4 $2 {[%emt 0:05:37]} (32. Bf1 $11 {and White has nothing to worry.}) 32... Rd8 $2 {[%emt 0:01:40]} ({Better is} 32... Rb6 $19 {[%cal Rc7b5]} 33. Bf1 Rhh6) 33. Be3 {[%emt 0:09:56]} f6 {[%emt 0:01:08]} 34. Rc1 {[%emt 0:01:46] [#]} (34. Bf1 $11) 34... Rb6 {[%emt 0:01:19]} (34... Bd6 $1 $17) 35. Bf1 $11 {[%emt 0:00:24]} Ne6 {[%emt 0:00:42]} 36. Rd1 {[%emt 0:01:42]} Nf4 {[%emt 0:01:20]} 37. Qb3 {[%emt 0:01:08]} Rc8 {[%emt 0:04:17]} 38. Rc1 {[%emt 0:04:11]} Rxc1+ {[%emt 0:00:16]} 39. Kxc1 {[%emt 0:00:08]} Qd6 {[%emt 0:01:14] Weighted Error Value: White=0.22 (precise) /Black=0.22 (precise)} 1/2-1/2

[Event "Saint Louis Norm Congress-IM 2022"]
[Site "Saint Louis"]
[Date "2022.05.21"]
[Round "5.3"]
[White "Grabinsky, Aaron"]
[Black "Tokhirjonova, Gulrukhbegim"]
[Result "1/2-1/2"]
[ECO "D02"]
[WhiteElo "2401"]
[BlackElo "2337"]
[Annotator "TA"]
[PlyCount "117"]
[EventDate "2022.05.20"]
[EventType "tourn"]
[EventCountry "USA"]
[SourceTitle "playchess.com"]
[Source "ChessBase"]
[SourceQuality "1"]
[TimeControl "5400+30"]

{[%evp 11,117,5,11,9,16,20,22,17,13,-4,0,-4,-10,0,-8,-16,0,0,9,19,19,8,21,0,23,4,58,23,55,56,54,43,34,0,0,0,0,0,5,20,31,44,62,56,80,91,112,77,149,113,193,107,173,129,125,46,56,63,81,-73,-66,-127,-123,-130,-131,-133,-135,-222,-221,-202,-111,-125,-82,-75,-72,-83,-86,-70,-75,-114,-100,-125,-96,-98,-98,-167,-147,-135,-81,-95,-8,-8,-8,-8,-8,-8,0,-8,0,0,0,0,0,0,0,-8,-8,-8]} 1. d4 {[%emt 0:00:04]} Nf6 {[%emt 0:00:12]} 2. Bf4 {[%emt 0:00:17]} d5 {[%emt 0:00:24]} 3. e3 {[%emt 0:00:06]} c5 {[%emt 0:00:31]} 4. c3 {[%emt 0:00:10]} Nc6 {[%emt 0:00:42]} 5. Nd2 {[%emt 0:00:11]} e6 {[%emt 0:01:29]} 6. Ngf3 {[%emt 0:00:31]} cxd4 {[%emt 0:02:11] is the new trend.} 7. exd4 {[%emt 0:00:10] D02: 1 d4 d5 2 Nf3 sidelines, including 2...Nf6 3 g3 and 2...Nf6 3 Bf4.} Nh5 {[%emt 0:00:40]} 8. Be3 {[%emt 0:01:10]} Bd6 {[%emt 0:02:02]} 9. Ne5 {[%emt 0:00:12]} g6 {[%emt 0:01:32]} 10. f4 {[%emt 0:02:01]} f6 {[%emt 0:01:44]} 11. Nd3 {[%emt 0:01:28]} O-O {[%emt 0:02:16]} 12. Nf3 {[%emt 0:02:08] Inhibits e5.} Qc7 {[%emt 0:02:04][%cal Rh5f4]} 13. g3 {[%emt 0:00:46] [#]} Bd7 $146 {[%emt 0:10:53]} ({Predecessor:} 13... Ng7 14. Be2 Na5 15. O-O Nf5 16. Bc1 Nc4 17. Re1 Nce3 18. Bxe3 Nxe3 19. Qc1 Nf5 {0-1 (33) Heinemann,C (2234)-Broadway,D (2201) ICCF email 2019}) 14. Bg2 {[%emt 0:00:43]} Rae8 {[%emt 0:00:10]} 15. O-O {[%emt 0:01:18]} Na5 {[%emt 0:02:22]} 16. Re1 {[%emt 0:05:17]} Ng7 {[%emt 0:00:43]} 17. Bf2 {[%emt 0:02:47]} Bb5 {[%emt 0:04:05]} 18. Rc1 {[%emt 0:03:10]} (18. a4 $5 {[%cal Ra4b5]} Bc6 19. Nd2 $11) 18... h6 {[%emt 0:06:29]} (18... b6 $11) 19. b3 {[%emt 0:03:04]} (19. a4 $5 {[%cal Ra4b5]} Bc4 20. b4 $11) 19... g5 {[%emt 0:02:55]} 20. fxg5 {[%emt 0:01:27]} hxg5 {[%emt 0:00:16]} 21. Rc2 {[%emt 0:10:17]} Qf7 {[%emt 0:01:57]} 22. Nb2 {[%emt 0:02:28]} Rc8 {[%emt 0:01:45]} 23. Nd2 {[%emt 0:04:00]} Qg6 {[%emt 0:02:07]} 24. c4 {[%emt 0:05:23]} Bb4 {[%emt 0:03:07]} 25. Bf1 {[%emt 0:01:34]} dxc4 {[%emt 0:04:53]} 26. bxc4 {[%emt 0:01:19]} Bc6 {[%emt 0:00:14]} 27. Nd3 {[%emt 0:04:19]} Bxd2 {[%emt 0:08:53]} 28. Qxd2 {[%emt 0:01:31]} b6 {[%emt 0:00:28]} 29. Nb4 {[%emt 0:03:25]} Bb7 {[%emt 0:01:27]} (29... Bf3 $142) 30. d5 {[%emt 0:03:36]} Rfd8 {[%emt 0:01:11]} (30... exd5 $16 31. Bd3 (31. Nxd5 Bxd5 32. Qxd5+ Qf7 $16) (31. cxd5 Rxc2 32. Nxc2 Qf7 $16) 31... Qf7) 31. Rcc1 {[%emt 0:03:47]} (31. Bd3 $18 Qh5 32. Rec1) 31... Qf5 {[%emt 0:02:06]} (31... Qf7 $16) 32. Qd4 {[%emt 0:04:55] Hoping for Bd3.} exd5 {[%emt 0:06:08]} 33. cxd5 {[%emt 0:02:16]} ({White should play} 33. Bd3 $16 Qf3 34. Be2) 33... Rxc1 $14 {[%emt 0:02:49]} 34. Rxc1 {[%emt 0:00:24]} Ne6 $1 {[%emt 0:01:50]} 35. Qb2 {[%emt 0:05:48]} (35. Qc3 $16 {aiming for Bd3.} Bxd5 36. Nxd5 Rxd5 37. Bg2) 35... Rxd5 $17 {[%emt 0:01:35]} ({Resist} 35... Bxd5 36. Nxd5 Rxd5 37. Bg2 $14) 36. Bg2 {[%emt 0:03:14]} (36. Qe2 $15 Rd6 37. Bg2) 36... Rd7 $1 {[%emt 0:00:43]} 37. Bxb7 {[%emt 0:02:03]} Nxb7 {[%emt 0:00:51][%cal Ba5b7,Bb7c5,Bc5d3][%mdl 32] Pair of Knights!} ({Inferior is} 37... Rxb7 38. Qe2 $15) 38. Rf1 {[%emt 0:01:34][%cal Of2b6]} Nbc5 {[%emt 0:03:24]} 39. Be3 {[%emt 0:05:50]} (39. Be1 $17 Qe5 40. Qxe5 fxe5 41. Nc6) 39... Qe4 $19 {[%emt 0:02:16]} 40. Nc2 {[%emt 0:00:02] [#]} Rf7 {[%emt 0:01:06]} (40... g4 $1 $19 {...f5 is the strong threat.} 41. Bc1 f5) 41. Qc3 {[%emt 0:02:28]} Qd3 {[%emt 0:01:14]} 42. Qxd3 {[%emt 0:01:15]} Nxd3 {[%emt 0:00:02]} 43. Nd4 {[%emt 0:01:33]} Nxd4 {[%emt 0:00:31]} 44. Bxd4 $17 {[%emt 0:00:04][%mdl 4096] Endgame KRB-KRN} Kg7 {[%emt 0:00:15]} 45. Rd1 {[%emt 0:00:57]} Nc5 {[%emt 0:02:17]} 46. Ba1 {[%emt 0:00:50]} Rd7 {[%emt 0:00:56]} 47. Rxd7+ {[%emt 0:01:29]} Nxd7 {[%emt 0:00:02] KB-KN} 48. h4 {[%emt 0:00:06]} (48. Kf2 $17) 48... Kg6 $19 {[%emt 0:00:15]} 49. Kf2 {[%emt 0:00:21]} Kh5 {[%emt 0:01:13]} ({Black should try} 49... g4) 50. Kf3 $17 {[%emt 0:00:59] [#]} gxh4 {[%emt 0:02:47]} (50... f5 $1 $17) 51. gxh4 $11 {[%emt 0:00:05] The position is equal.} Kxh4 {[%emt 0:00:05] Strongly threatening ...Kg5.} 52. Kf4 {[%emt 0:00:10]} b5 {[%emt 0:00:38][%cal Bb6b5,Bb5b4][%mdl 32]} 53. Kf5 {[%emt 0:02:36]} b4 {[%emt 0:03:47]} 54. Ke6 {[%emt 0:00:15]} Nc5+ {[%emt 0:00:08]} 55. Kd5 {[%emt 0:01:31]} Nd3 {[%emt 0:00:24] And now ...f5 would win.} 56. Bxf6+ {[%emt 0:00:06]} Kg4 {[%emt 0:00:04]} 57. Kc4 {[%emt 0:00:10]} Nc1 {[%emt 0:00:04]} 58. Kxb4 {[%emt 0:00:05]} Nxa2+ {[%emt 0:00:05]} 59. Ka5 {[%emt 0:00:08] Never resign too early!  Weighted Error Value: White=0.20 (precise) /Black=0.16 (very precise)} 1/2-1/2

[Event "Saint Louis Norm Congress-IM 2022"]
[Site "Saint Louis"]
[Date "2022.05.21"]
[Round "5.4"]
[White "Proleiko, Julian"]
[Black "Antova, Gabriela"]
[Result "1/2-1/2"]
[ECO "D02"]
[WhiteElo "2204"]
[BlackElo "2293"]
[Annotator "TA"]
[PlyCount "90"]
[EventDate "2022.05.20"]
[EventType "tourn"]
[EventCountry "USA"]
[SourceTitle "playchess.com"]
[Source "ChessBase"]
[SourceQuality "1"]
[TimeControl "5400+30"]

{[%evp 9,90,40,27,-9,-7,-16,-19,-21,0,0,2,0,0,0,0,0,0,-28,-26,-29,-31,-48,0,1,0,0,0,0,18,14,33,32,21,31,22,12,17,0,6,5,8,10,10,7,7,0,0,0,114,49,51,51,51,47,58,56,47,0,47,42,56,54,47,22,25,8,8,0,0,-16,-14,-12,-12,-12,8,8,8,8,8,8,8,0,29985]} 1. d4 {[%emt 0:00:03]} d5 {[%emt 0:00:13]} 2. Nf3 {[%emt 0:00:07]} Nf6 {[%emt 0:00:39]} 3. g3 {[%emt 0:00:06]} c5 {[%emt 0:02:30]} 4. Bg2 {[%emt 0:00:47]} cxd4 {[%emt 0:00:44]} 5. O-O {[%emt 0:00:08]} h6 {[%emt 0:10:07]} 6. Nxd4 {[%emt 0:00:07][%cal Oc2c4] D02: 1 d4 d5 2 Nf3 sidelines, including 2...Nf6 3 g3 and 2...Nf6 3 Bf4.} e5 {[%emt 0:00:44]} 7. Nf3 {[%emt 0:00:05]} Nc6 {[%emt 0:00:17]} 8. c4 {[%emt 0:00:04]} d4 {[%emt 0:02:23]} 9. e3 {[%emt 0:00:06]} Be7 {[%emt 0:10:26]} 10. exd4 {[%emt 0:00:07]} exd4 {[%emt 0:00:07] [#]} 11. Bf4 $146 {[%emt 0:00:04]} ({Predecessor:} 11. b3 O-O 12. Bb2 Bc5 13. Nbd2 a5 14. a3 Bg4 15. h3 Bf5 16. Re1 Qd7 17. Kh2 {0-1 (72) Khotenashvili,B (2476)-Batsiashvili,N (2502) Riadh 2017}) 11... O-O {[%emt 0:04:08]} 12. Ne5 {[%emt 0:00:07]} Qb6 {[%emt 0:02:02]} 13. Qb3 {[%emt 0:03:57]} Na5 {[%emt 0:11:38]} 14. Qb5 {[%emt 0:16:19]} Be6 {[%emt 0:03:52]} 15. b3 {[%emt 0:02:24][%cal Bb2b3,Bb3b4][%mdl 32]} Qxb5 {[%emt 0:07:19]} (15... Rac8 $1 $15) 16. cxb5 $11 {[%emt 0:00:02]} a6 {[%emt 0:00:21]} 17. b6 {[%emt 0:01:39]} Bc5 {[%emt 0:03:04]} 18. Rc1 {[%emt 0:02:37]} Bxb6 {[%emt 0:06:45]} 19. b4 {[%emt 0:00:09]} Nc6 {[%emt 0:01:35]} (19... d3 {keeps more tension.} 20. bxa5 Bd4 21. Nd2 g5) 20. Nxc6 {[%emt 0:00:05]} bxc6 {[%emt 0:00:08]} 21. Rxc6 {[%emt 0:00:04]} Nd7 {[%emt 0:01:46]} 22. Nd2 {[%emt 0:01:12]} Rac8 {[%emt 0:02:05]} 23. Rac1 {[%emt 0:01:55][%cal Ba1c1,Bc1c6,Bc6d6][%mdl 32]} Rxc6 {[%emt 0:04:30]} 24. Rxc6 {[%emt 0:00:02]} Bxa2 {[%emt 0:01:53]} 25. Bh3 {[%emt 0:00:30]} f5 {[%emt 0:00:31]} 26. Rd6 $36 {[%emt 0:03:17][%mdl 2048] White is pushing.} Rf7 {[%emt 0:00:18]} 27. Bf1 {[%emt 0:00:12]} g5 $1 {[%emt 0:10:42]} 28. Nc4 {[%emt 0:00:28]} Bd8 {[%emt 0:03:12]} (28... gxf4 $11 {remains equal.} 29. Nxb6 Ne5) 29. Ne5 {[%emt 0:03:51] White is more active.} (29. Bd2 $16) 29... Rg7 {[%emt 0:02:30]} 30. Nxd7 {[%emt 0:00:51]} gxf4 {[%emt 0:00:09]} 31. Nc5 {[%emt 0:04:55]} Bc7 {[%emt 0:04:13]} 32. Rxa6 {[%emt 0:00:09]} Bd5 {[%emt 0:00:07]} 33. Ne6 {[%emt 0:07:38]} (33. b5 $14 {feels stronger.}) 33... Bxe6 {[%emt 0:00:24]} (33... Rd7 $11) 34. Rxe6 $14 {[%emt 0:00:02]} fxg3 {[%emt 0:00:19]} 35. hxg3 $11 {[%emt 0:00:05][%mdl 4096] Endgame KRB-KRB} f4 {[%emt 0:00:44]} 36. Bc4 {[%emt 0:00:13] [#] Threatens to win with Re8+.} (36. b5 $5 {[%cal Rb5b6]} fxg3 37. b6 gxf2+ 38. Kxf2 Rf7+ 39. Kg2 (39. Ke2 Bxb6 40. Rxb6 d3+ 41. Ke1 d2+ 42. Kxd2 Rxf1 $11) 39... Rg7+ 40. Kh3 Bxb6 41. Rxb6 $14) 36... Kf8 {[%emt 0:00:41] Against Re8+} 37. Rxh6 {[%emt 0:01:25]} fxg3 {[%emt 0:00:07] The position is equal.} 38. f4 {[%emt 0:00:35][%cal Bf2f4,Bf4f5,Bf5g6][%mdl 32]} d3 {[%emt 0:02:15]} 39. Rf6+ {[%emt 0:03:21]} Ke7 {[%emt 0:00:26]} 40. Re6+ {[%emt 0:00:06]} Kd7 {[%emt 0:00:51] [#] White must now prevent ...d2.} 41. f5 {[%emt 0:01:42]} g2 {[%emt 0:01:05][%cal Oc7h2] ( -> ...Bh2+!)} 42. Rg6 {[%emt 0:00:18]} Rxg6 {[%emt 0:01:08]} 43. fxg6 {[%emt 0:00:02]} d2 {[%emt 0:00:07]} 44. Be2 {[%emt 0:01:56] Intending g7 and mate.} Ke6 {[%emt 0:00:35]} 45. Kxg2 {[%emt 0:00:07]} Ke5 $2 {[%emt 0:00:29][%mdl 40960] Weighted Error Value: White=0.08 (flawless) /Black=0.11 (very precise) . An unexpected result.} (45... Kf6 $11) 1/2-1/2

[Event "Saint Louis Norm Congress-IM 2022"]
[Site "Saint Louis"]
[Date "2022.05.21"]
[Round "5.5"]
[White "Rodriguez Rivera, Pedro"]
[Black "Ezra Paul Chambers"]
[Result "1/2-1/2"]
[ECO "D05"]
[WhiteElo "2197"]
[BlackElo "2232"]
[Annotator "TA"]
[PlyCount "134"]
[EventDate "2022.05.20"]
[EventType "tourn"]
[EventCountry "USA"]
[SourceTitle "playchess.com"]
[Source "ChessBase"]
[SourceQuality "1"]
[TimeControl "5400+30"]

{[%evp 21,134,-41,-21,-27,-32,-25,4,4,33,35,37,33,36,43,37,37,37,31,67,64,62,65,66,37,41,38,46,48,43,41,64,47,54,41,32,37,56,35,79,75,75,75,75,76,76,76,93,93,83,73,61,51,51,11,31,31,31,31,31,27,51,51,51,32,51,51,51,51,51,37,51,51,51,51,51,51,51,51,51,51,51,35,35,35,35,24,24,0,0,0,0,0,0,0,0,0,0,0,4,6,6,6,6,6,6,0,0,0,6,6,6,6,6,6,6]} 1. d4 {[%emt 0:00:03]} d5 {[%emt 0:00:10]} 2. Nf3 {[%emt 0:00:05]} Nf6 {[%emt 0:00:15]} 3. e3 {[%emt 0:00:02]} c5 {[%emt 0:00:50]} 4. c3 {[%emt 0:00:12]} e6 {[%emt 0:00:16]} 5. Bd3 {[%emt 0:00:03]} Bd6 {[%emt 0:00:35]} 6. Nbd2 {[%emt 0:00:07]} O-O {[%emt 0:00:17]} 7. O-O {[%emt 0:00:03]} Nbd7 {[%emt 0:02:51]} 8. Re1 {[%emt 0:00:18]} e5 {[%emt 0:02:07]} 9. dxe5 {[%emt 0:02:04]} Nxe5 {[%emt 0:00:10]} 10. Nxe5 {[%emt 0:00:26]} Bxe5 {[%emt 0:00:05]} 11. Nf3 {[%emt 0:00:24]} Bc7 {[%emt 0:01:40]} 12. c4 {[%emt 0:01:56] D05: Colle System with ...e6.} dxc4 {[%emt 0:05:13]} 13. Bxc4 {[%emt 0:00:26]} Qxd1 {[%emt 0:00:08]} 14. Rxd1 {[%emt 0:00:03] [#]} Bd7 $146 {[%emt 0:00:13]} ({Predecessor:} 14... Bg4 15. b3 Rad8 16. Bb2 Nd7 17. Rd5 h6 18. Nh4 Be6 19. Rdd1 Bxc4 20. bxc4 Be5 {½-½ (49) Cassi,E (1615)-Samudin,E (1825) Moscow 2018}) 15. b3 {[%emt 0:02:51]} Rfd8 {[%emt 0:07:03]} 16. Bb2 {[%emt 0:03:32]} b5 {[%emt 0:04:16]} 17. Be2 {[%emt 0:06:08]} Bb6 {[%emt 0:09:16]} 18. Bxf6 {[%emt 0:13:43]} gxf6 {[%emt 0:00:06]} 19. Rd6 {[%emt 0:00:06]} Kg7 {[%emt 0:06:12]} 20. Rad1 {[%emt 0:00:23]} Be8 {[%emt 0:00:15]} 21. Nh4 {[%emt 0:01:04] White is much more active.} Rxd6 {[%emt 0:02:10]} 22. Rxd6 {[%emt 0:00:05]} Kf8 {[%emt 0:04:37]} 23. Nf5 {[%emt 0:00:27]} Rc8 {[%emt 0:05:55]} 24. Rd1 {[%emt 0:03:39]} Bc6 {[%emt 0:01:26]} 25. Kf1 {[%emt 0:03:07]} Bc7 {[%emt 0:04:41]} 26. Rc1 {[%emt 0:12:31][%cal Of5d4]} Bb8 {[%emt 0:02:51]} 27. Bd3 {[%emt 0:10:04]} Bd7 {[%emt 0:02:40]} 28. Ng3 {[%emt 0:00:20]} Ke7 {[%emt 0:06:22]} 29. Ke2 {[%emt 0:03:52]} h6 {[%emt 0:04:59]} 30. Nf5+ {[%emt 0:05:05]} Bxf5 {[%emt 0:00:25]} 31. Bxf5 $16 {[%emt 0:00:02][%mdl 4096] Endgame KRB-KRB} Rc6 {[%emt 0:00:23]} 32. Bd3 {[%emt 0:00:41] Prevents c4.} a6 {[%emt 0:01:38]} 33. a4 {[%emt 0:01:07]} bxa4 {[%emt 0:00:14]} 34. bxa4 {[%emt 0:00:01]} Bd6 {[%emt 0:00:09]} 35. Rb1 {[%emt 0:02:58]} c4 {[%emt 0:02:13]} 36. Be4 {[%emt 0:00:16]} Rc7 {[%emt 0:01:51]} 37. Rb7 {[%emt 0:05:11]} Rxb7 {[%emt 0:00:16]} 38. Bxb7 $11 {[%emt 0:00:01] KB-KB} a5 {[%emt 0:00:08]} 39. Bd5 {[%emt 0:00:12]} c3 {[%emt 0:00:06]} 40. h3 {[%emt 0:00:38]} Ba3 {[%emt 0:00:51] [#] Threatens to win with ...c2.} 41. Kd3 {[%emt 0:00:45]} Bb4 {[%emt 0:00:06]} 42. Bb3 {[%emt 0:00:16]} Kf8 {[%emt 0:01:05]} 43. Ke4 {[%emt 0:01:07]} Kg7 {[%emt 0:00:24]} 44. Kf5 {[%emt 0:00:04]} Bc5 {[%emt 0:00:11]} 45. g4 {[%emt 0:00:22]} Bb6 {[%emt 0:00:19]} 46. h4 {[%emt 0:00:22]} Bc5 {[%emt 0:00:06]} 47. h5 {[%emt 0:00:31]} Bb6 {[%emt 0:00:21]} 48. Ke4 {[%emt 0:00:30]} Bc5 {[%emt 0:00:03]} 49. Kd5 {[%emt 0:00:27]} Bb4 {[%emt 0:00:18]} 50. Bc2 {[%emt 0:00:10]} Kf8 {[%emt 0:00:29]} 51. f4 {[%emt 0:00:26]} Ba3 {[%emt 0:00:45]} 52. Kd4 {[%emt 0:01:14]} Bb4 {[%emt 0:00:13]} 53. e4 {[%emt 0:00:17]} Bd6 {[%emt 0:01:24]} 54. e5 {[%emt 0:00:26]} fxe5+ {[%emt 0:00:05] The position is equal.} 55. fxe5 {[%emt 0:00:05]} Bb4 {[%emt 0:00:23]} 56. Ke4 {[%emt 0:01:51]} Kg7 {[%emt 0:00:38]} 57. Bd3 {[%emt 0:00:28]} Be7 {[%emt 0:00:36]} 58. Kd4 {[%emt 0:00:24]} Bb4 {[%emt 0:00:37]} 59. Be4 {[%emt 0:00:42]} f6 {[%emt 0:01:19]} 60. e6 {[%emt 0:00:32]} Kf8 {[%emt 0:00:11]} 61. Bc2 {[%emt 0:00:23]} Ke7 {[%emt 0:00:03]} 62. Kd5 {[%emt 0:00:21]} Ba3 {[%emt 0:00:10]} 63. Bb3 {[%emt 0:01:18]} Bb4 {[%emt 0:00:10]} 64. Ke4 {[%emt 0:01:42]} c2 {[%emt 0:00:37]} 65. Bxc2 {[%emt 0:00:02]} Kxe6 {[%emt 0:00:04]} 66. Bb3+ {[%emt 0:00:06]} Ke7 {[%emt 0:00:03]} 67. Kf5 {[%emt 0:01:32]} Bd2 {[%emt 0:00:06] Weighted Error Value: White=0.05 (flawless) /Black=0.06 (flawless)} 1/2-1/2